[Event "*** SCC Grand Prix: Titled Tuesday Blitz"]
[Site "Chess.com"]
[Date "2020.06.02"]
[Round "6"]
[White "rynos0411"]
[Black "Vandros57"]
[Result "1-0"]
[WhiteElo "2438"]
[BlackElo "2230"]
[TimeControl "180+1"]
[EndTime "11:08:52 PDT"]
[Termination "rynos0411 won by resignation"]

1. d4 {[%clk 0:03:00.9]} 1... Nf6 {[%clk 0:02:58.1]} 2. c4 {[%clk 0:03:00.5]}
2... e6 {[%clk 0:02:57.4]} 3. Nf3 {[%clk 0:03:00.6]} 3... Bb4+ {[%clk 0:02:56]}
4. Nbd2 {[%clk 0:02:59.8]} 4... d5 {[%clk 0:02:54.1]} 5. e3 {[%clk 0:02:58.3]}
5... O-O {[%clk 0:02:53.1]} 6. a3 {[%clk 0:02:58.2]} 6... Bxd2+ {[%clk
0:02:51.5]} 7. Qxd2 {[%clk 0:02:54.6]} 7... b6 {[%clk 0:02:41.8]} 8. Bd3 {[%clk
0:02:53.2]} 8... Bb7 {[%clk 0:02:41]} 9. cxd5 {[%clk 0:02:52.9]} 9... exd5
{[%clk 0:02:37.8]} 10. O-O {[%clk 0:02:51.8]} 10... Nbd7 {[%clk 0:02:36.7]} 11.
b4 {[%clk 0:02:51.9]} 11... a5 {[%clk 0:02:34]} 12. b5 {[%clk 0:02:50]} 12...
Ne4 {[%clk 0:02:29.1]} 13. Qc2 {[%clk 0:02:48.8]} 13... Rc8 {[%clk 0:02:24.5]}
14. Bb2 {[%clk 0:02:46.5]} 14... f6 {[%clk 0:02:16]} 15. Rac1 {[%clk 0:02:43.6]}
15... Re8 {[%clk 0:02:14]} 16. Rfd1 {[%clk 0:02:40.8]} 16... h6 {[%clk
0:02:12.8]} 17. Nd2 {[%clk 0:02:40.5]} 17... Kh8 {[%clk 0:02:08.1]} 18. f3
{[%clk 0:02:32.6]} 18... Nxd2 {[%clk 0:02:06.5]} 19. Qxd2 {[%clk 0:02:33.5]}
19... c6 {[%clk 0:01:56.3]} 20. bxc6 {[%clk 0:02:31.8]} 20... Rxc6 {[%clk
0:01:51.5]} 21. Rxc6 {[%clk 0:02:28.9]} 21... Bxc6 {[%clk 0:01:50.9]} 22. Rc1
{[%clk 0:02:29.8]} 22... Qa8 {[%clk 0:01:45.8]} 23. Bg6 {[%clk 0:02:16.4]} 23...
Rc8 {[%clk 0:01:44.1]} 24. Bf5 {[%clk 0:02:16]} 24... Ba4 {[%clk 0:01:28.5]} 25.
Kf2 {[%clk 0:02:08.3]} 25... Qb7 {[%clk 0:01:17.2]} 26. e4 {[%clk 0:02:01.7]}
26... Rxc1 {[%clk 0:01:14.4]} 27. Qxc1 {[%clk 0:02:01.1]} 27... Qc6 {[%clk
0:01:14.4]} 28. Qxc6 {[%clk 0:01:58.4]} 28... Bxc6 {[%clk 0:01:13.6]} 29. exd5
{[%clk 0:01:57.2]} 29... Ba4 {[%clk 0:01:09.1]} 30. Bc1 {[%clk 0:01:54.2]} 30...
Kg8 {[%clk 0:01:07.4]} 31. Bf4 {[%clk 0:01:52.5]} 31... g5 {[%clk 0:01:04.1]}
32. Bd6 {[%clk 0:01:51.9]} 32... Kf7 {[%clk 0:01:00.1]} 33. Ke3 {[%clk
0:01:49.1]} 33... Nf8 {[%clk 0:00:55.7]} 34. Bc7 {[%clk 0:01:40.6]} 34... Nd7
{[%clk 0:00:50.9]} 35. f4 {[%clk 0:01:23.9]} 35... Ke7 {[%clk 0:00:44.9]} 36.
d6+ {[%clk 0:01:22.6]} 36... Kf7 {[%clk 0:00:43.4]} 37. fxg5 {[%clk 0:01:20.7]}
37... fxg5 {[%clk 0:00:39.6]} 38. Bg4 {[%clk 0:01:13.1]} 38... Nf6 {[%clk
0:00:39.1]} 39. Bf3 {[%clk 0:01:07.5]} 39... Ke6 {[%clk 0:00:32.7]} 40. Bxb6
{[%clk 0:01:04.3]} 40... Kxd6 {[%clk 0:00:29.2]} 41. Bxa5 {[%clk 0:01:03.4]}
41... Nd5+ {[%clk 0:00:28.2]} 42. Kf2 {[%clk 0:01:03.4]} 42... Bb3 {[%clk
0:00:25.4]} 43. Kg3 {[%clk 0:01:00.8]} 43... Nf4 {[%clk 0:00:24.7]} 44. h4
{[%clk 0:00:59.6]} 44... Be6 {[%clk 0:00:23.4]} 45. hxg5 {[%clk 0:00:57.8]}
45... hxg5 {[%clk 0:00:23.2]} 46. Bd8 {[%clk 0:00:58.1]} 46... Bd5 {[%clk
0:00:19.1]} 47. Bxg5 {[%clk 0:00:57]} 47... Bxf3 {[%clk 0:00:18.1]} 48. Bxf4+
{[%clk 0:00:57.4]} 48... Kd5 {[%clk 0:00:17.7]} 49. Kxf3 {[%clk 0:00:56.1]} 1-0

[Event "*** SCC Grand Prix: Titled Tuesday Blitz"]
[Site "Chess.com"]
[Date "2020.06.02"]
[Round "6"]
[White "Berant"]
[Black "stoleriu"]
[Result "0-1"]
[WhiteElo "2323"]
[BlackElo "2539"]
[TimeControl "180+1"]
[EndTime "11:08:54 PDT"]
[Termination "stoleriu won by resignation"]

1. e4 {[%clk 0:03:00.9]} 1... e6 {[%clk 0:03:00]} 2. d4 {[%clk 0:03:01.1]} 2...
d5 {[%clk 0:03:00.9]} 3. Nd2 {[%clk 0:03:00.8]} 3... Be7 {[%clk 0:03:00.4]} 4.
Bd3 {[%clk 0:02:59.9]} 4... c5 {[%clk 0:02:55.6]} 5. exd5 {[%clk 0:03:00.2]}
5... Qxd5 {[%clk 0:02:51]} 6. Ngf3 {[%clk 0:02:59.9]} 6... cxd4 {[%clk
0:02:49.7]} 7. Bc4 {[%clk 0:02:59.8]} 7... Qc5 {[%clk 0:02:44.2]} 8. Qe2 {[%clk
0:02:55.2]} 8... Nf6 {[%clk 0:02:43.3]} 9. Nb3 {[%clk 0:02:54.2]} 9... Qc7
{[%clk 0:02:32.5]} 10. Nbxd4 {[%clk 0:02:54.2]} 10... a6 {[%clk 0:02:28.8]} 11.
O-O {[%clk 0:02:42.7]} 11... O-O {[%clk 0:02:28.6]} 12. Bg5 {[%clk 0:02:40.6]}
12... b5 {[%clk 0:02:24.4]} 13. Bd3 {[%clk 0:02:39.2]} 13... Bb7 {[%clk
0:02:24.3]} 14. Rfe1 {[%clk 0:02:35.2]} 14... Kh8 {[%clk 0:02:21]} 15. Nf5
{[%clk 0:02:27.2]} 15... Bd8 {[%clk 0:02:00.2]} 16. Ng3 {[%clk 0:02:03.6]} 16...
Nbd7 {[%clk 0:01:55.7]} 17. Rad1 {[%clk 0:01:48.7]} 17... Rc8 {[%clk 0:01:38.6]}
18. c3 {[%clk 0:01:47]} 18... Nd5 {[%clk 0:01:34.5]} 19. Bxd8 {[%clk 0:01:43.9]}
19... Rcxd8 {[%clk 0:01:35.4]} 20. Ng5 {[%clk 0:01:32.2]} 20... N7f6 {[%clk
0:01:29.9]} 21. Nh5 {[%clk 0:01:28.1]} 21... h6 {[%clk 0:01:23.4]} 22. Nxf6
{[%clk 0:01:23.7]} 22... Nxf6 {[%clk 0:01:24.3]} 23. Ne4 {[%clk 0:01:21]} 23...
Rxd3 {[%clk 0:01:19.7]} 24. Rxd3 {[%clk 0:00:44.1]} 24... Bxe4 {[%clk
0:01:16.2]} 25. Rg3 {[%clk 0:00:41.2]} 25... Rd8 {[%clk 0:01:13.4]} 26. Qe3
{[%clk 0:00:39.2]} 26... Bf5 {[%clk 0:01:08.1]} 27. h3 {[%clk 0:00:38.6]} 27...
Nd5 {[%clk 0:00:45.8]} 28. Qd4 {[%clk 0:00:32.6]} 28... Nf6 {[%clk 0:00:41.4]}
29. Qb4 {[%clk 0:00:30.6]} 29... Qd6 {[%clk 0:00:36.1]} 30. Qa5 {[%clk 0:00:24]}
30... Kh7 {[%clk 0:00:30.5]} 31. a4 {[%clk 0:00:20.2]} 31... bxa4 {[%clk
0:00:28.1]} 32. Qxa4 {[%clk 0:00:19.9]} 32... Qd2 {[%clk 0:00:28.6]} 33. Rge3
{[%clk 0:00:19.5]} 33... Nd5 {[%clk 0:00:26.1]} 34. R3e2 {[%clk 0:00:19.6]}
34... Qg5 {[%clk 0:00:24]} 35. Qa5 {[%clk 0:00:19.2]} 35... Bxh3 {[%clk
0:00:22.7]} 36. f4 {[%clk 0:00:19.6]} 36... Nxf4 {[%clk 0:00:20.8]} 37. Rf2
{[%clk 0:00:18]} 37... Qxa5 {[%clk 0:00:20.6]} 0-1

[Event "*** SCC Grand Prix: Titled Tuesday Blitz"]
[Site "Chess.com"]
[Date "2020.06.02"]
[Round "6"]
[White "Mikasinski"]
[Black "monalize"]
[Result "1-0"]
[WhiteElo "2466"]
[BlackElo "2286"]
[TimeControl "180+1"]
[EndTime "11:08:55 PDT"]
[Termination "Mikasinski won on time"]

1. e4 {[%clk 0:03:00.9]} 1... c5 {[%clk 0:02:59.5]} 2. Nf3 {[%clk 0:03:00.8]}
2... d6 {[%clk 0:02:59.6]} 3. d4 {[%clk 0:03:01.1]} 3... cxd4 {[%clk 0:02:59.7]}
4. Nxd4 {[%clk 0:03:02]} 4... Nf6 {[%clk 0:02:59.4]} 5. Nc3 {[%clk 0:03:02.5]}
5... a6 {[%clk 0:02:59]} 6. Be2 {[%clk 0:03:02.3]} 6... e6 {[%clk 0:02:57.8]} 7.
O-O {[%clk 0:03:01.1]} 7... Qc7 {[%clk 0:02:57.4]} 8. f4 {[%clk 0:03:00.9]} 8...
b5 {[%clk 0:02:57.2]} 9. Bf3 {[%clk 0:03:00.6]} 9... Bb7 {[%clk 0:02:56.8]} 10.
e5 {[%clk 0:03:00]} 10... dxe5 {[%clk 0:02:46.2]} 11. fxe5 {[%clk 0:02:58.4]}
11... Nfd7 {[%clk 0:02:46.6]} 12. Bxb7 {[%clk 0:01:50.3]} 12... Qxb7 {[%clk
0:02:45.4]} 13. Bf4 {[%clk 0:01:43.7]} 13... Bc5 {[%clk 0:02:41.8]} 14. Kh1
{[%clk 0:01:41.5]} 14... O-O {[%clk 0:02:37.7]} 15. Nb3 {[%clk 0:01:37.2]} 15...
Bb6 {[%clk 0:02:28.7]} 16. Qg4 {[%clk 0:01:36.8]} 16... Kh8 {[%clk 0:02:23.2]}
17. Rad1 {[%clk 0:01:33.2]} 17... Nc6 {[%clk 0:02:22]} 18. Qf3 {[%clk
0:01:26.3]} 18... Qc7 {[%clk 0:02:03]} 19. Rfe1 {[%clk 0:01:15.4]} 19... Ndxe5
{[%clk 0:01:53]} 20. Qg3 {[%clk 0:01:10.4]} 20... f6 {[%clk 0:01:52.5]} 21. h4
{[%clk 0:01:02.3]} 21... Rad8 {[%clk 0:01:48.8]} 22. Ne4 {[%clk 0:00:55]} 22...
Qe7 {[%clk 0:01:31.3]} 23. h5 {[%clk 0:00:43.2]} 23... h6 {[%clk 0:00:59.5]} 24.
c3 {[%clk 0:00:37.1]} 24... Rxd1 {[%clk 0:00:39.8]} 25. Rxd1 {[%clk 0:00:36.5]}
25... Rd8 {[%clk 0:00:40.4]} 26. Rf1 {[%clk 0:00:25.7]} 26... Rd5 {[%clk
0:00:19.4]} 27. Qh4 {[%clk 0:00:20.5]} 27... Nd3 {[%clk 0:00:11.2]} 28. Bxh6
{[%clk 0:00:16.2]} 28... gxh6 {[%clk 0:00:10.5]} 29. Rxf6 {[%clk 0:00:14.7]} 1-0

[Event "*** SCC Grand Prix: Titled Tuesday Blitz"]
[Site "Chess.com"]
[Date "2020.06.02"]
[Round "6"]
[White "jefferyx"]
[Black "Dedic8"]
[Result "0-1"]
[WhiteElo "2915"]
[BlackElo "2733"]
[TimeControl "180+1"]
[EndTime "11:08:56 PDT"]
[Termination "Dedic8 won on time"]

1. c4 {[%clk 0:03:00.9]} 1... e5 {[%clk 0:03:00.1]} 2. Nc3 {[%clk 0:03:00.6]}
2... Bb4 {[%clk 0:03:00.3]} 3. Qc2 {[%clk 0:02:51.1]} 3... Nf6 {[%clk
0:02:59.1]} 4. e3 {[%clk 0:02:50.9]} 4... O-O {[%clk 0:02:59.1]} 5. Nge2 {[%clk
0:02:50.8]} 5... Re8 {[%clk 0:02:57.3]} 6. a3 {[%clk 0:02:50.4]} 6... Bf8 {[%clk
0:02:57]} 7. Ng3 {[%clk 0:02:47.6]} 7... d5 {[%clk 0:02:54.8]} 8. cxd5 {[%clk
0:02:47.5]} 8... Nxd5 {[%clk 0:02:55.7]} 9. Be2 {[%clk 0:02:46.4]} 9... Be6
{[%clk 0:02:49.2]} 10. b4 {[%clk 0:02:32.6]} 10... a5 {[%clk 0:02:43.5]} 11. b5
{[%clk 0:02:32.7]} 11... c5 {[%clk 0:02:43.5]} 12. Bb2 {[%clk 0:02:28.9]} 12...
Nd7 {[%clk 0:02:40]} 13. O-O {[%clk 0:02:18.3]} 13... Rc8 {[%clk 0:02:38.1]} 14.
Rad1 {[%clk 0:02:08.6]} 14... N7b6 {[%clk 0:02:37.6]} 15. Bd3 {[%clk 0:02:00]}
15... Qh4 {[%clk 0:02:31.1]} 16. Bf5 {[%clk 0:01:52.6]} 16... Rcd8 {[%clk
0:02:03.8]} 17. Nce4 {[%clk 0:01:45.5]} 17... Bxf5 {[%clk 0:01:46.5]} 18. Nxf5
{[%clk 0:01:46.4]} 18... Qh5 {[%clk 0:01:46.9]} 19. Nfg3 {[%clk 0:00:53.8]}
19... Qg6 {[%clk 0:01:47.1]} 20. Rc1 {[%clk 0:00:54.7]} 20... c4 {[%clk
0:01:39.6]} 21. Nc3 {[%clk 0:00:46.6]} 21... Qxc2 {[%clk 0:01:26.2]} 22. Rxc2
{[%clk 0:00:47.5]} 22... Nc7 {[%clk 0:01:26.9]} 23. Rb1 {[%clk 0:00:44.5]} 23...
Rd3 {[%clk 0:01:26.3]} 24. Kf1 {[%clk 0:00:43.6]} 24... f5 {[%clk 0:01:26.3]}
25. Nxf5 {[%clk 0:00:42.9]} 25... Red8 {[%clk 0:01:24.7]} 26. Ke2 {[%clk
0:00:42.8]} 26... Bc5 {[%clk 0:01:18.5]} 27. Ng3 {[%clk 0:00:42.6]} 27... Ncd5
{[%clk 0:01:14.4]} 28. Nge4 {[%clk 0:00:31.2]} 28... Be7 {[%clk 0:01:11.3]} 29.
Nxd5 {[%clk 0:00:23.7]} 29... R8xd5 {[%clk 0:01:11.1]} 30. Bc3 {[%clk
0:00:24.2]} 30... a4 {[%clk 0:00:59.8]} 31. Ba5 {[%clk 0:00:10.2]} 31... Nd7
{[%clk 0:01:00]} 32. Rxc4 {[%clk 0:00:09.5]} 32... Rxa3 {[%clk 0:01:00.3]} 33.
Rc7 {[%clk 0:00:06.7]} 33... Nc5 {[%clk 0:00:32.1]} 34. Nc3 {[%clk 0:00:04.9]}
34... Rd7 {[%clk 0:00:31.1]} 35. b6 {[%clk 0:00:04.3]} 35... Rb3 {[%clk
0:00:27.8]} 36. Ra1 {[%clk 0:00:02.3]} 36... a3 {[%clk 0:00:28]} 0-1

[Event "*** SCC Grand Prix: Titled Tuesday Blitz"]
[Site "Chess.com"]
[Date "2020.06.02"]
[Round "6"]
[White "kingnb"]
[Black "Fandorine"]
[Result "1-0"]
[WhiteElo "2578"]
[BlackElo "2894"]
[TimeControl "180+1"]
[EndTime "11:08:57 PDT"]
[Termination "kingnb won by resignation"]

1. e4 {[%clk 0:03:00.9]} 1... c5 {[%clk 0:02:58]} 2. Nf3 {[%clk 0:03:00.6]} 2...
d6 {[%clk 0:02:58.5]} 3. Nc3 {[%clk 0:03:00.1]} 3... Nf6 {[%clk 0:02:53.4]} 4.
e5 {[%clk 0:02:59.9]} 4... dxe5 {[%clk 0:02:53.8]} 5. Nxe5 {[%clk 0:03:00.8]}
5... a6 {[%clk 0:02:47.2]} 6. a4 {[%clk 0:02:52.4]} 6... Nbd7 {[%clk 0:02:46.5]}
7. Nc4 {[%clk 0:02:52.4]} 7... b6 {[%clk 0:02:41.5]} 8. Be2 {[%clk 0:02:47.7]}
8... Bb7 {[%clk 0:02:41.2]} 9. Bf3 {[%clk 0:02:47.9]} 9... Qc8 {[%clk
0:02:39.1]} 10. d3 {[%clk 0:02:48.1]} 10... g6 {[%clk 0:02:30.6]} 11. O-O {[%clk
0:02:44.8]} 11... e6 {[%clk 0:01:24.4]} 12. Re1 {[%clk 0:02:32.3]} 12... Be7
{[%clk 0:01:22.8]} 13. Bh6 {[%clk 0:02:32]} 13... Ra7 {[%clk 0:01:16]} 14. Bg7
{[%clk 0:02:18.1]} 14... Rg8 {[%clk 0:01:15.6]} 15. Bxf6 {[%clk 0:02:18.3]}
15... Nxf6 {[%clk 0:01:12.3]} 16. Nxb6 {[%clk 0:02:18.4]} 16... Qb8 {[%clk
0:01:02]} 17. a5 {[%clk 0:02:15.7]} 17... h5 {[%clk 0:01:00.7]} 18. Ra4 {[%clk
0:02:02.6]} 18... g5 {[%clk 0:00:58.9]} 19. Bxb7 {[%clk 0:02:01.6]} 19... Rxb7
{[%clk 0:00:58.9]} 20. Ne4 {[%clk 0:02:01.6]} 20... g4 {[%clk 0:00:48.8]} 21.
Rc4 {[%clk 0:01:39]} 21... Rg6 {[%clk 0:00:46]} 22. Nxc5 {[%clk 0:01:33.3]}
22... Bxc5 {[%clk 0:00:42.8]} 23. Rxc5 {[%clk 0:01:34.2]} 23... Rc7 {[%clk
0:00:43.7]} 24. d4 {[%clk 0:01:24.8]} 24... h4 {[%clk 0:00:33.8]} 25. Qe2 {[%clk
0:01:06.6]} 25... h3 {[%clk 0:00:20.4]} 26. Qxa6 {[%clk 0:00:59.8]} 26... Ke7
{[%clk 0:00:05.3]} 27. Nc8+ {[%clk 0:00:19.8]} 27... Rxc8 {[%clk 0:00:04.9]} 28.
Qxc8 {[%clk 0:00:20.7]} 28... Qxb2 {[%clk 0:00:01.9]} 29. Rc7+ {[%clk
0:00:18.9]} 29... Kd6 {[%clk 0:00:02.5]} 30. Qd8+ {[%clk 0:00:19.2]} 1-0

[Event "*** SCC Grand Prix: Titled Tuesday Blitz"]
[Site "Chess.com"]
[Date "2020.06.02"]
[Round "6"]
[White "gmcorrales"]
[Black "Malysch"]
[Result "1-0"]
[WhiteElo "2769"]
[BlackElo "2527"]
[TimeControl "180+1"]
[EndTime "11:08:57 PDT"]
[Termination "gmcorrales won on time"]

1. e4 {[%clk 0:03:00.9]} 1... Nf6 {[%clk 0:02:59]} 2. e5 {[%clk 0:02:58.6]} 2...
Nd5 {[%clk 0:02:59.5]} 3. d4 {[%clk 0:02:58.6]} 3... d6 {[%clk 0:02:59.8]} 4. c4
{[%clk 0:02:57.5]} 4... Nb6 {[%clk 0:02:59.6]} 5. exd6 {[%clk 0:02:57.6]} 5...
exd6 {[%clk 0:03:00.5]} 6. Nc3 {[%clk 0:02:57.3]} 6... Be7 {[%clk 0:03:01.4]} 7.
Bd3 {[%clk 0:02:56.8]} 7... Nc6 {[%clk 0:03:00.7]} 8. Nge2 {[%clk 0:02:56.2]}
8... Bg4 {[%clk 0:03:00.6]} 9. Be3 {[%clk 0:02:53.5]} 9... Bf6 {[%clk
0:02:58.5]} 10. f3 {[%clk 0:00:57.7]} 10... Bh5 {[%clk 0:02:56.6]} 11. Nf4
{[%clk 0:00:57.5]} 11... Bg6 {[%clk 0:02:56.5]} 12. Nxg6 {[%clk 0:00:57.6]}
12... hxg6 {[%clk 0:02:57.4]} 13. Be2 {[%clk 0:00:47.6]} 13... d5 {[%clk
0:02:42.1]} 14. c5 {[%clk 0:00:46.2]} 14... Nc4 {[%clk 0:02:42.1]} 15. Bxc4
{[%clk 0:00:45.7]} 15... dxc4 {[%clk 0:02:42.9]} 16. Qd2 {[%clk 0:00:30.2]}
16... Nxd4 {[%clk 0:02:38.2]} 17. O-O-O {[%clk 0:00:29.7]} 17... Ne6 {[%clk
0:02:23.9]} 18. Qc2 {[%clk 0:00:29.5]} 18... Qe7 {[%clk 0:02:13.8]} 19. Nd5
{[%clk 0:00:29.8]} 19... Qd8 {[%clk 0:01:31.9]} 20. Nb6 {[%clk 0:00:28.8]} 20...
axb6 {[%clk 0:01:24.7]} 21. Rxd8+ {[%clk 0:00:28.2]} 21... Kxd8 {[%clk 0:00:52]}
22. Qxc4 {[%clk 0:00:27.4]} 22... bxc5 {[%clk 0:00:44.8]} 23. Bxc5 {[%clk
0:00:28.3]} 23... Rh4 {[%clk 0:00:35.4]} 24. Qd5+ {[%clk 0:00:24.9]} 24... Kc8
{[%clk 0:00:35.5]} 25. Rd1 {[%clk 0:00:23.9]} 25... Rh8 {[%clk 0:00:12.4]} 26.
Qd7+ {[%clk 0:00:23.8]} 26... Kb8 {[%clk 0:00:11.7]} 27. Be3 {[%clk 0:00:23.7]}
27... Rxa2 {[%clk 0:00:09.4]} 28. Rd2 {[%clk 0:00:21.2]} 28... Ra1+ {[%clk
0:00:08.2]} 29. Kc2 {[%clk 0:00:21]} 29... Ra2 {[%clk 0:00:08.3]} 30. Kb1 {[%clk
0:00:20.3]} 30... Ra6 {[%clk 0:00:03.2]} 31. Qxf7 {[%clk 0:00:20.3]} 31... Rc8
{[%clk 0:00:01.9]} 32. Qxg6 {[%clk 0:00:19.9]} 1-0

[Event "*** SCC Grand Prix: Titled Tuesday Blitz"]
[Site "Chess.com"]
[Date "2020.06.02"]
[Round "6"]
[White "KNVB"]
[Black "doons21"]
[Result "1-0"]
[WhiteElo "2682"]
[BlackElo "2489"]
[TimeControl "180+1"]
[EndTime "11:08:58 PDT"]
[Termination "KNVB won by checkmate"]

1. e4 {[%clk 0:03:00.9]} 1... e6 {[%clk 0:02:59.9]} 2. Nf3 {[%clk 0:02:58.8]}
2... d5 {[%clk 0:02:58.3]} 3. e5 {[%clk 0:02:57.7]} 3... c5 {[%clk 0:02:58.8]}
4. b4 {[%clk 0:02:57.9]} 4... cxb4 {[%clk 0:02:59.7]} 5. a3 {[%clk 0:02:57.9]}
5... Nc6 {[%clk 0:02:59.7]} 6. axb4 {[%clk 0:02:56.8]} 6... Bxb4 {[%clk
0:03:00.6]} 7. c3 {[%clk 0:02:57.2]} 7... Be7 {[%clk 0:03:01]} 8. d4 {[%clk
0:02:56.6]} 8... Bd7 {[%clk 0:03:01.5]} 9. Bd3 {[%clk 0:02:55.9]} 9... a6 {[%clk
0:03:00.8]} 10. h4 {[%clk 0:02:51.1]} 10... h6 {[%clk 0:02:40.9]} 11. h5 {[%clk
0:02:29.2]} 11... Rc8 {[%clk 0:02:38.4]} 12. Na3 {[%clk 0:01:49.3]} 12... Na5
{[%clk 0:02:28.9]} 13. Bd2 {[%clk 0:01:48]} 13... Nc4 {[%clk 0:02:12.3]} 14.
Nxc4 {[%clk 0:01:20.5]} 14... dxc4 {[%clk 0:02:10.4]} 15. Be4 {[%clk 0:00:56.1]}
15... Bc6 {[%clk 0:02:09.3]} 16. Qb1 {[%clk 0:00:55.6]} 16... Qd7 {[%clk
0:01:40.8]} 17. Rh3 {[%clk 0:00:40]} 17... Bf8 {[%clk 0:01:36]} 18. Bc1 {[%clk
0:00:20.1]} 18... Ne7 {[%clk 0:01:34]} 19. Nd2 {[%clk 0:00:15.7]} 19... Bxe4
{[%clk 0:00:36.8]} 20. Nxe4 {[%clk 0:00:16.6]} 20... Nd5 {[%clk 0:00:37]} 21.
Rg3 {[%clk 0:00:15.1]} 21... Rc6 {[%clk 0:00:20.7]} 22. Ba3 {[%clk 0:00:14.7]}
22... Nf4 {[%clk 0:00:21.1]} 23. Bxf8 {[%clk 0:00:09.2]} 23... Kxf8 {[%clk
0:00:21.5]} 24. Kf1 {[%clk 0:00:09.5]} 24... b5 {[%clk 0:00:16.8]} 25. Rf3
{[%clk 0:00:07.5]} 25... Nd5 {[%clk 0:00:14.7]} 26. Nc5 {[%clk 0:00:07]} 26...
Qa7 {[%clk 0:00:12.3]} 27. Qxb5 {[%clk 0:00:04.1]} 27... axb5 {[%clk 0:00:12.6]}
28. Rxa7 {[%clk 0:00:05]} 28... Rc8 {[%clk 0:00:12.5]} 29. Rfxf7+ {[%clk
0:00:04.5]} 29... Ke8 {[%clk 0:00:11.9]} 30. Nxe6 {[%clk 0:00:03.6]} 30... b4
{[%clk 0:00:08.6]} 31. Nxg7+ {[%clk 0:00:03.6]} 31... Kd8 {[%clk 0:00:08.5]} 32.
Rad7# {[%clk 0:00:04.3]} 1-0

[Event "*** SCC Grand Prix: Titled Tuesday Blitz"]
[Site "Chess.com"]
[Date "2020.06.02"]
[Round "6"]
[White "PlayChessSimple"]
[Black "CalinGheorghiu"]
[Result "1-0"]
[WhiteElo "2520"]
[BlackElo "2315"]
[TimeControl "180+1"]
[EndTime "11:08:58 PDT"]
[Termination "PlayChessSimple won by resignation"]

1. e4 {[%clk 0:03:00.9]} 1... c5 {[%clk 0:02:59.2]} 2. Nf3 {[%clk 0:03:00.2]}
2... d6 {[%clk 0:02:59]} 3. c3 {[%clk 0:03:00.6]} 3... Nf6 {[%clk 0:02:57.6]} 4.
h3 {[%clk 0:03:00.7]} 4... g6 {[%clk 0:02:55]} 5. Bd3 {[%clk 0:03:00.6]} 5...
Bg7 {[%clk 0:02:54.6]} 6. Bc2 {[%clk 0:03:00.7]} 6... O-O {[%clk 0:02:48.4]} 7.
d4 {[%clk 0:03:00.2]} 7... cxd4 {[%clk 0:02:44.1]} 8. cxd4 {[%clk 0:02:59.9]}
8... d5 {[%clk 0:02:43.9]} 9. e5 {[%clk 0:02:59.4]} 9... Ne4 {[%clk 0:02:43.5]}
10. Nc3 {[%clk 0:02:59.2]} 10... Nxc3 {[%clk 0:02:41.8]} 11. bxc3 {[%clk
0:02:57.6]} 11... Qc7 {[%clk 0:02:32.4]} 12. Bd2 {[%clk 0:02:47]} 12... Nc6
{[%clk 0:02:24.4]} 13. O-O {[%clk 0:02:45.3]} 13... Na5 {[%clk 0:02:23.7]} 14.
Rc1 {[%clk 0:02:36.9]} 14... Nc4 {[%clk 0:02:22.6]} 15. Bg5 {[%clk 0:02:35.7]}
15... Re8 {[%clk 0:01:55.2]} 16. Re1 {[%clk 0:02:32.7]} 16... Bd7 {[%clk
0:01:50.9]} 17. Nh2 {[%clk 0:02:16.8]} 17... f6 {[%clk 0:01:29.5]} 18. e6 {[%clk
0:02:14.9]} 18... fxg5 {[%clk 0:01:20]} 19. exd7 {[%clk 0:02:13]} 19... Qxd7
{[%clk 0:01:20.4]} 20. Ng4 {[%clk 0:02:04.4]} 20... Rf8 {[%clk 0:01:12]} 21. Qd3
{[%clk 0:01:55.6]} 21... Rac8 {[%clk 0:00:50.8]} 22. Re2 {[%clk 0:01:54.6]}
22... Nd6 {[%clk 0:00:48.9]} 23. Bb3 {[%clk 0:01:45.8]} 23... Nb5 {[%clk
0:00:31]} 24. Ne5 {[%clk 0:01:02.5]} 24... Bxe5 {[%clk 0:00:22.9]} 25. Rxe5
{[%clk 0:01:03.1]} 25... e6 {[%clk 0:00:17.2]} 26. Rxg5 {[%clk 0:01:02.4]} 26...
Nd6 {[%clk 0:00:15.3]} 27. Re1 {[%clk 0:01:00.4]} 27... Ne4 {[%clk 0:00:14.6]}
28. Rxe4 {[%clk 0:00:58.6]} 28... dxe4 {[%clk 0:00:14.4]} 29. Qxe4 {[%clk
0:00:58.9]} 29... Rf6 {[%clk 0:00:14.8]} 30. Re5 {[%clk 0:00:55.6]} 30... Qc6
{[%clk 0:00:07.9]} 31. d5 {[%clk 0:00:50.1]} 31... Qxc3 {[%clk 0:00:07.8]} 32.
dxe6 {[%clk 0:00:48.7]} 32... Qc1+ {[%clk 0:00:07.6]} 33. Kh2 {[%clk 0:00:48.5]}
33... Kg7 {[%clk 0:00:05.8]} 34. e7 {[%clk 0:00:47.6]} 34... Re8 {[%clk
0:00:06.2]} 35. Ba4 {[%clk 0:00:41]} 35... b5 {[%clk 0:00:04]} 36. Bxb5 {[%clk
0:00:40.2]} 36... Rb8 {[%clk 0:00:01.5]} 37. e8=Q {[%clk 0:00:38.2]} 37... Rxe8
{[%clk 0:00:01.9]} 38. Bxe8 {[%clk 0:00:38.2]} 38... Qc7 {[%clk 0:00:01.6]} 39.
f4 {[%clk 0:00:36.2]} 39... Rf8 {[%clk 0:00:01.5]} 1-0

[Event "*** SCC Grand Prix: Titled Tuesday Blitz"]
[Site "Chess.com"]
[Date "2020.06.02"]
[Round "6"]
[White "r31415"]
[Black "MacDaddyMac"]
[Result "0-1"]
[WhiteElo "2427"]
[BlackElo "2284"]
[TimeControl "180+1"]
[EndTime "11:08:58 PDT"]
[Termination "MacDaddyMac won on time"]

1. d4 {[%clk 0:03:00.9]} 1... e6 {[%clk 0:02:58.4]} 2. c4 {[%clk 0:02:56.7]}
2... d5 {[%clk 0:02:59.3]} 3. Nf3 {[%clk 0:02:55.9]} 3... Nf6 {[%clk 0:02:59.1]}
4. Bg5 {[%clk 0:02:51.7]} 4... Be7 {[%clk 0:02:59]} 5. e3 {[%clk 0:02:51.6]}
5... b6 {[%clk 0:02:56.4]} 6. Nbd2 {[%clk 0:02:49.3]} 6... Nbd7 {[%clk
0:02:55.6]} 7. Bd3 {[%clk 0:02:46.2]} 7... Bb7 {[%clk 0:02:55.3]} 8. O-O {[%clk
0:02:45.5]} 8... h6 {[%clk 0:02:53.8]} 9. Bh4 {[%clk 0:02:44.3]} 9... O-O {[%clk
0:02:50.7]} 10. Qc2 {[%clk 0:02:43.3]} 10... Rc8 {[%clk 0:02:31.4]} 11. cxd5
{[%clk 0:02:30.1]} 11... exd5 {[%clk 0:02:30.4]} 12. Ne5 {[%clk 0:02:25.6]}
12... c5 {[%clk 0:02:22.3]} 13. Nxd7 {[%clk 0:02:06.6]} 13... Nxd7 {[%clk
0:02:03.4]} 14. Bxe7 {[%clk 0:02:05.4]} 14... Qxe7 {[%clk 0:02:04.3]} 15. dxc5
{[%clk 0:02:00.6]} 15... bxc5 {[%clk 0:02:00]} 16. Rac1 {[%clk 0:01:50.4]} 16...
g6 {[%clk 0:01:38.1]} 17. Rfd1 {[%clk 0:01:47.4]} 17... Ne5 {[%clk 0:01:36.6]}
18. Be2 {[%clk 0:01:47]} 18... Rfd8 {[%clk 0:01:36.1]} 19. Nb3 {[%clk
0:01:43.5]} 19... d4 {[%clk 0:01:13.7]} 20. exd4 {[%clk 0:00:58.7]} 20... cxd4
{[%clk 0:01:12.4]} 21. Qd2 {[%clk 0:00:58.9]} 21... d3 {[%clk 0:00:36.6]} 22.
Bf1 {[%clk 0:00:55.7]} 22... Nc4 {[%clk 0:00:34.5]} 23. Qxh6 {[%clk 0:00:35.4]}
23... Nxb2 {[%clk 0:00:32.6]} 24. Re1 {[%clk 0:00:24.8]} 24... Qf6 {[%clk
0:00:12.2]} 25. Qd2 {[%clk 0:00:19.3]} 25... Nc4 {[%clk 0:00:10.5]} 26. Qc3
{[%clk 0:00:12.9]} 26... Qc6 {[%clk 0:00:09.9]} 27. Red1 {[%clk 0:00:06]} 27...
d2 {[%clk 0:00:08]} 28. Nxd2 {[%clk 0:00:04.5]} 28... Nxd2 {[%clk 0:00:08.2]}
29. Rxd2 {[%clk 0:00:03.2]} 29... Rxd2 {[%clk 0:00:07.9]} 0-1